bitfinex/quotes_BTCUSD_20220303
["timestamp","ask_amount","ask_price","bid_price","bid_amount"]
[1646316351308,0.3300914,44112.0,44110.0,0.2]
[1646316351506,0.37940358,44111.0,44110.0,0.15607491]
[1646316351705,0.03913158,44111.0,44110.0,0.15107491]
[1646316351903,0.36922298,44111.0,44110.0,0.15107491]
[1646316352304,0.38175598,44111.0,44110.0,0.15107491]
[1646316352702,0.47358797,44111.0,44110.0,0.15107491]
[1646316352903,0.13331897,44111.0,44110.0,0.15107491]
[1646316353757,0.02548698,44111.0,44110.0,0.15107491]
[1646316353958,0.08219818,44111.0,44110.0,0.15107491]
[1646316354358,0.352804,44110.0,44109.0,0.056713]
[1646316354558,0.40951906,44110.0,44109.0,0.056713]
[1646316355158,0.40951906,44110.0,44108.0,0.113425]
[1646316355358,0.29873767,44111.0,44108.0,0.113425]
[1646316355359,0.40952171,44109.0,44108.0,0.113425]
[1646316355959,1.050406,44109.0,44107.0,0.170146]
[1646316356158,0.27579192,44108.0,44107.0,0.170146]
[1646316356360,0.31885048,44108.0,44107.0,0.170146]
[1646316356760,0.40669888,44108.0,44107.0,0.170146]
[1646316356961,0.997443,44107.0,44106.0,0.056719]
[1646316357164,0.39552588,44107.0,44106.0,0.056719]
[1646316357422,0.40801588,44107.0,44106.0,0.056719]
[1646316357619,1.10561588,44107.0,44098.0,0.34053335]
[1646316357820,0.01340088,44103.0,44098.0,0.34053335]
[1646316358019,0.01624338,44103.0,44098.0,0.34053335]
[1646316358221,0.00283579,44103.0,44098.0,0.34031]
[1646316358420,0.00283579,44103.0,44098.0,0.34052028]
[1646316358621,0.20162614,44103.0,44098.0,0.34052028]
[1646316358823,0.20162614,44103.0,44101.0,0.056721]
[1646316359523,0.55444114,44103.0,44101.0,0.056721]
[1646316360423,0.55444114,44103.0,44098.0,0.22708228]
[1646316360424,0.352815,44102.0,44098.0,0.22708228]
[1646316360624,0.14,44099.0,44093.0,0.25000152]
[1646316360823,0.14,44099.0,44093.0,0.19612152]
[1646316360824,0.28249645,44096.0,44093.0,0.19612152]
[1646316361071,0.01961215,44090.0,44087.0,0.056739]
[1646316361275,0.21296934,44090.0,44089.0,0.68539142]
[1646316361477,0.56578434,44090.0,44089.0,0.68539142]
[1646316361674,0.57078434,44090.0,44089.0,0.68539142]
[1646316362072,0.92551202,44090.0,44089.0,0.20597242]
[1646316362274,0.95,44089.0,44088.0,0.181533]
[1646316362473,1.25,44089.0,44088.0,0.181533]
[1646316362676,1.18559597,44089.0,44088.0,0.181533]
[1646316362875,1.48559527,44089.0,44088.0,0.181533]
[1646316363375,1.18559527,44089.0,44088.0,0.181533]
[1646316363973,1.18959527,44089.0,44088.0,0.181533]
[1646316364373,1.40938166,44089.0,44088.0,0.181533]
[1646316364576,1.41858071,44089.0,44088.0,0.181533]
[1646316364818,1.18298544,44089.0,44088.0,0.181533]
[1646316365221,1.17898544,44089.0,44088.0,0.170213]
[1646316365819,1.48298544,44089.0,44088.0,0.170213]
[1646316366221,1.18298544,44089.0,44088.0,0.170213]
[1646316366923,1.18298544,44089.0,44088.0,0.03051917]
[1646316367127,1.36738947,44089.0,44088.0,0.03051917]
[1646316367525,1.17898544,44089.0,44088.0,0.03051917]
[1646316368126,1.36738947,44089.0,44088.0,0.03051917]
[1646316369374,1.17898544,44089.0,44088.0,0.03051917]
[1646316369875,1.37236628,44089.0,44088.0,0.03051917]
[1646316370074,1.50333973,44089.0,44087.0,0.11348]
[1646316370279,0.352815,44087.0,44081.0,0.226952]
[1646316370477,0.352815,44087.0,44075.0,0.2382]
[1646316370478,0.18841483,44085.0,44075.0,0.2382]
[1646316370675,0.54122983,44084.0,44082.0,0.056753]
[1646316370876,1.23882983,44084.0,44082.0,0.056753]
[1646316371076,1.29422057,44084.0,44082.0,0.056753]
[1646316371276,0.24380557,44084.0,44082.0,0.056753]
[1646316371476,0.24380557,44084.0,44075.0,0.2382]
[1646316371477,0.352815,44083.0,44075.0,0.2382]
[1646316371678,0.352815,44083.0,44079.0,0.056754]
[1646316371679,0.18841483,44083.0,44079.0,0.056754]
[1646316371877,0.42494624,44086.0,44081.0,0.113501]
[1646316371878,0.22265041,44082.0,44081.0,0.113501]
[1646316372531,0.57546541,44082.0,44081.0,0.113501]
[1646316372730,0.32249384,44082.0,44081.0,0.113501]
[1646316372933,0.67530884,44082.0,44081.0,0.113501]
[1646316373333,0.61379167,44082.0,44081.0,0.113501]
[1646316373732,0.61879167,44082.0,44081.0,0.113501]
[1646316373933,1.31639167,44082.0,44081.0,0.113501]
[1646316374136,0.61879167,44082.0,44081.0,0.113501]
[1646316374333,0.61879167,44082.0,44080.0,0.05675]
[1646316374534,0.61879167,44082.0,44079.0,0.00022312]
[1646316374535,0.45267882,44081.0,44079.0,0.00022312]
[1646316374733,0.09986382,44080.0,44079.0,0.00022312]
[1646316374934,1.33862575,44080.0,44076.0,0.056765]
[1646316375134,1.33862575,44080.0,44069.0,0.07]
[1646316375135,1.050415,44076.0,44069.0,0.07]
[1646316375334,0.6976,44074.0,44069.0,0.07]
[1646316375536,0.42423062,44075.0,44069.0,0.07]
[1646316375537,1.050415,44072.0,44069.0,0.07]
[1646316375733,0.41942101,44075.0,44070.0,0.113539]
[1646316376162,0.09988649,44072.0,44070.0,0.113539]
[1646316376363,0.45270149,44072.0,44070.0,0.113539]
[1646316376964,0.3805562,44072.0,44070.0,0.056772]
[1646316377164,1.0781562,44072.0,44070.0,0.056772]
[1646316377567,1.0781562,44072.0,44070.0,0.113535]
[1646316377568,0.7253412,44072.0,44070.0,0.113535]
[1646316377766,0.3805562,44072.0,44070.0,0.113535]
[1646316378166,1.0781562,44072.0,44070.0,0.113535]
[1646316378664,0.3805562,44072.0,44070.0,0.113535]
[1646316379822,0.352815,44072.0,44070.0,0.113535]
[1646316380224,1.050415,44072.0,44070.0,0.113535]
[1646316380425,0.17843744,44073.0,44070.0,0.056772]
[1646316380426,1.050415,44071.0,44070.0,0.056772]
[1646316380828,1.150415,44071.0,44069.0,0.06912293]
[1646316381025,1.25030149,44070.0,44063.0,0.227088]
[1646316381224,0.17042497,44065.0,44063.0,0.227088]
[1646316381424,0.1,44070.0,44063.0,0.227088]
[1646316381425,1.050415,44064.0,44063.0,0.227088]
[1646316381624,1.16619923,44064.0,44063.0,0.227088]
[1646316382022,0.003,44065.0,44063.0,0.227088]
[1646316382226,0.23820837,44065.0,44063.0,0.227088]
[1646316382424,0.29631626,44072.0,44063.0,0.227088]
[1646316382625,0.452815,44071.0,44063.0,0.227088]
[1646316382824,0.352815,44071.0,44063.0,0.227088]
[1646316383026,0.352815,44071.0,44064.0,0.15]
[1646316383225,0.16265771,44070.0,44064.0,0.15]
[1646316383429,0.16265771,44070.0,44066.0,0.056765]
[1646316383666,0.0418,44075.0,44066.0,0.056765]
[1646316383862,0.590815,44074.0,44066.0,0.056765]
[1646316384167,1.050415,44072.0,44066.0,0.056765]
[1646316384361,0.352815,44070.0,44066.0,0.056765]
[1646316384562,1.050415,44068.0,44066.0,0.056765]
[1646316384761,1.050415,44068.0,44067.0,0.00021305]
[1646316384961,1.39052851,44068.0,44067.0,0.00021305]
[1646316385161,1.39052851,44068.0,44066.0,0.056765]
[1646316385162,2.000415,44067.0,44066.0,0.056765]
[1646316385363,2.14052851,44067.0,44066.0,0.056765]
[1646316385562,2.14052851,44067.0,44063.0,0.227088]
[1646316385563,1.78771351,44067.0,44063.0,0.227088]
[1646316385763,1.050415,44064.0,44063.0,0.227088]
[1646316385969,1.29015198,44064.0,44063.0,0.227088]
[1646316386162,0.27102549,44056.0,44050.0,0.32034]
[1646316386464,0.69699561,44054.0,44050.0,4e-05]
[1646316386663,0.50226924,44055.0,44044.0,0.06]
[1646316386664,0.69699561,44052.0,44045.0,0.01135]
[1646316386861,0.35909453,44055.0,44045.0,0.01135]
[1646316386862,0.19480751,44049.0,44045.0,0.01135]
[1646316387064,0.35909453,44055.0,44044.0,0.06]
[1646316387323,0.452815,44054.0,44048.0,0.113588]
[1646316387525,0.22110174,44053.0,44048.0,0.113588]
[1646316387724,0.352815,44050.0,44048.0,0.108588]
[1646316387926,0.352815,44049.0,44048.0,0.108588]
[1646316388126,0.21110674,44050.0,44048.0,0.056796]
[1646316388327,0.95,44048.0,44044.0,0.06]
[1646316388532,0.95,44048.0,44047.0,0.00020684]
[1646316388726,1.16296455,44048.0,44047.0,0.00020684]
[1646316388927,0.1938,44050.0,44047.0,0.00020684]
[1646316389128,0.1,44050.0,44047.0,0.00020684]
[1646316389325,0.352815,44049.0,44047.0,0.00020684]
[1646316389526,0.1,44050.0,44047.0,0.113584]
[1646316389726,0.352815,44049.0,44047.0,0.113584]
[1646316389927,0.006,44050.0,44047.0,0.113584]
[1646316390134,0.24000001,44051.0,44048.0,0.352821]
[1646316390326,0.24000001,44051.0,44047.0,0.113584]
[1646316390628,0.9976,44057.0,44049.0,0.056782]
[1646316390827,0.352815,44056.0,44049.0,0.056782]
[1646316391055,1.050415,44055.0,44049.0,0.056782]
[1646316391258,0.352815,44052.0,44051.0,0.056782]
[1646316391454,0.352815,44053.0,44051.0,0.056782]
[1646316391654,0.24000001,44052.0,44051.0,0.056782]
[1646316392456,0.59281501,44052.0,44051.0,0.056782]
[1646316392656,0.93760001,44052.0,44049.0,0.056782]
[1646316392858,0.23070904,44051.0,44049.0,0.056782]
[1646316393255,0.23070904,44051.0,44049.0,0.056562]
[1646316393659,0.24000001,44052.0,44049.0,0.056562]
[1646316393855,0.005,44051.0,44049.0,0.056562]
[1646316394055,0.24000001,44052.0,44049.0,0.056562]
[1646316394456,0.54000001,44052.0,44049.0,0.056562]
[1646316394659,0.54000001,44052.0,44049.0,0.056202]
[1646316395511,0.24000001,44052.0,44049.0,0.536202]
[1646316396013,0.002,44057.0,44049.0,0.537202]
[1646316397006,0.21448283,44057.0,44049.0,0.0338956]
[1646316397204,0.21448283,44057.0,44049.0,0.0328956]
[1646316397205,0.21248283,44057.0,44049.0,0.0328956]
[1646316397407,0.91008283,44057.0,44049.0,0.0328956]
[1646316397907,0.91008283,44057.0,44049.0,0.0896776]
[1646316397908,0.001,44057.0,44049.0,0.0896776]
[1646316398106,0.05,44064.0,44051.0,0.95]
[1646316398311,0.05,44074.0,44061.0,0.15]
[1646316398584,0.02519,44075.0,44065.0,0.02281]
[1646316398785,0.23960612,44075.0,44066.0,0.352821]
[1646316398984,0.02519,44075.0,44066.0,0.352821]
[1646316399388,0.02519,44075.0,44067.0,0.2918]
[1646316399584,0.02519,44075.0,44068.0,0.352821]
[1646316399784,0.02519,44075.0,44067.0,0.17027]
[1646316399785,0.15996017,44074.0,44067.0,0.17027]
[1646316399984,0.21728933,44067.0,44066.0,0.170273]
[1646316400184,1.04533103,44074.0,44066.0,0.523313]
[1646316400386,1.04533103,44074.0,44069.0,0.05675]
[1646316401183,1.04533103,44074.0,44058.0,0.656298]
[1646316401184,0.00830575,44065.0,44058.0,0.656298]
[1646316401386,0.00830575,44065.0,44059.0,0.35304]
[1646316401782,0.20980051,44065.0,44059.0,0.34804]
[1646316401982,0.01030575,44065.0,44059.0,0.34804]
[1646316402182,0.01030575,44065.0,44059.0,0.404809]
[1646316402428,0.01030575,44065.0,44063.0,0.35304]
[1646316403230,0.00830575,44065.0,44063.0,0.35304]
[1646316404532,0.2,44069.0,44063.0,0.466561]
[1646316404735,0.2,44069.0,44063.0,0.523322]
[1646316404932,0.2,44069.0,44065.0,0.353086]
[1646316405133,0.2,44069.0,44067.0,0.353086]
[1646316406079,0.19,44069.0,44067.0,0.353086]
[1646316406484,0.18775841,44072.0,44067.0,0.353086]
[1646316406682,0.18775841,44072.0,44066.0,0.227036]
[1646316407280,0.31506824,44072.0,44066.0,0.227036]
[1646316407480,0.17915726,44074.0,44067.0,0.353086]
[1646316407682,0.17915726,44074.0,44068.0,0.056763]
[1646316409086,0.6976,44073.0,44068.0,0.056763]
[1646316409683,0.6976,44071.0,44068.0,0.056763]
[1646316409921,0.23467534,44072.0,44068.0,0.056763]
[1646316410128,0.93227534,44072.0,44068.0,0.056763]
[1646316410921,0.89411874,44069.0,44068.0,0.056763]
[1646316413222,1.08213718,44069.0,44068.0,0.056763]
[1646316413427,1.08213718,44069.0,44062.0,0.056788]
[1646316413428,1.43522318,44069.0,44062.0,0.056788]
[1646316413666,0.754386,44067.0,44062.0,0.113573]
[1646316413865,0.6976,44065.0,44062.0,0.113573]
[1646316414065,0.6976,44063.0,44062.0,0.113573]
[1646316414273,0.6976,44063.0,44061.0,0.113571]
[1646316414274,0.009688,44062.0,44061.0,0.113571]
[1646316414466,0.6976,44058.0,44055.0,0.227043]
[1646316414666,0.009688,44062.0,44055.0,0.227043]
[1646316414667,0.6976,44060.0,44055.0,0.227043]
[1646316414867,0.353086,44061.0,44055.0,0.227043]
[1646316414868,0.6976,44058.0,44055.0,0.222043]
[1646316415065,1.050686,44058.0,44057.0,0.056788]
[1646316416169,1.190686,44058.0,44057.0,0.056788]
[1646316416567,1.16244309,44058.0,44057.0,0.056788]
[1646316416771,1.11992952,44058.0,44057.0,0.056788]
[1646316419126,1.07739446,44058.0,44057.0,0.056788]
[1646316419427,1.56568605,44058.0,44057.0,0.056788]
[1646316419624,1.37739446,44058.0,44057.0,0.056788]
[1646316420026,0.73667446,44058.0,44057.0,0.056788]
[1646316420628,0.92496605,44058.0,44057.0,0.056788]
[1646316421086,0.10782901,44053.0,44052.0,0.170371]
[1646316421685,0.6976,44056.0,44052.0,0.170371]
[1646316422288,0.88493384,44056.0,44052.0,0.170371]
[1646316422486,1.16366084,44056.0,44052.0,0.170371]
[1646316422688,0.6976,44056.0,44052.0,0.170371]
[1646316423092,0.356939,44056.0,44052.0,0.170371]
[1646316423287,0.18829159,44061.0,44052.0,0.170371]
[1646316423489,0.18829159,44062.0,44052.0,0.170371]
[1646316423689,0.15487361,44060.0,44052.0,0.165371]
[1646316423890,0.3431652,44060.0,44052.0,0.167371]
[1646316424088,0.022048,44059.0,44055.0,0.170328]
[1646316424288,0.022048,44059.0,44056.0,0.056787]
[1646316424592,0.24253863,44058.0,44056.0,0.056787]
[1646316424824,0.719648,44057.0,44056.0,0.056787]
[1646316425025,0.21033959,44057.0,44056.0,0.056787]
[1646316426027,0.022048,44057.0,44056.0,0.056787]
[1646316426228,0.18842975,44057.0,44056.0,0.056787]
[1646316426626,0.21047775,44057.0,44056.0,0.056787]
[1646316426825,0.21047775,44057.0,44051.0,0.17035]
[1646316426826,0.21047775,44057.0,44051.0,0.11630526]
[1646316427026,0.18842975,44057.0,44051.0,0.11630526]
[1646316427429,0.18842975,44057.0,44056.0,0.056787]
[1646316427629,0.23502305,44059.0,44056.0,0.056787]
[1646316427630,0.18842975,44059.0,44056.0,0.056787]
[1646316427831,0.18842975,44060.0,44056.0,0.056787]
[1646316428028,0.18842975,44061.0,44056.0,0.056787]
[1646316429267,0.18842975,44060.0,44056.0,0.056787]
[1646316429468,0.18842975,44061.0,44056.0,0.056787]
[1646316429668,0.18842975,44060.0,44056.0,0.056787]
[1646316431670,0.022048,44059.0,44056.0,0.056787]
[1646316431871,0.18842975,44060.0,44056.0,0.056787]
[1646316432071,0.26391692,44059.0,44056.0,0.056787]
[1646316432331,0.022048,44059.0,44056.0,0.056787]
[1646316432540,0.18842975,44062.0,44057.0,0.353124]
[1646316432735,0.18842975,44063.0,44057.0,0.353124]
[1646316432940,0.6976,44067.0,44058.0,0.375934]
[1646316432941,0.18842975,44065.0,44058.0,0.375934]
[1646316433133,0.18840728,44068.0,44060.0,0.056757]
[1646316433332,0.23550911,44071.0,44064.0,0.170278]
[1646316433532,0.19791314,44070.0,44065.0,0.353124]
[1646316433732,0.17885499,44068.0,44065.0,0.353124]
[1646316434133,0.15782171,44072.0,44065.0,0.353124]
[1646316434535,0.00018799,44076.0,44067.0,0.056761]
[1646316434734,0.00018799,44076.0,44070.0,0.113505]
[1646316434932,0.00018799,44076.0,44071.0,0.353124]
[1646316435334,0.24731241,44076.0,44071.0,0.353124]
[1646316435535,0.20355701,44075.0,44071.0,0.253124]
[1646316435732,0.20199422,44074.0,44071.0,0.366629]
[1646316435935,0.20199422,44074.0,44071.0,0.113505]
[1646316436167,0.20355701,44075.0,44071.0,0.113505]
[1646316436668,0.20355701,44075.0,44070.0,0.113505]
[1646316436669,0.6976,44073.0,44070.0,0.113505]
[1646316436868,0.6976,44071.0,44070.0,0.113505]
[1646316437267,0.959665,44071.0,44070.0,0.113505]
[1646316437467,0.819665,44071.0,44070.0,0.113505]
[1646316437672,1.014665,44071.0,44070.0,0.113505]
[1646316438569,0.457065,44071.0,44070.0,0.02990897]
[1646316438768,1.154665,44071.0,44070.0,0.02990897]
[1646316439173,0.6976,44068.0,44061.0,0.113551]
[1646316439368,0.6976,44064.0,44058.0,0.056785]
[1646316439571,0.32978598,44067.0,44060.0,0.056785]
[1646316439572,0.6976,44061.0,44060.0,0.056785]
[1646316439816,0.819665,44061.0,44060.0,0.056785]
[1646316440617,0.6976,44059.0,44056.0,0.227044]
[1646316440818,0.6976,44057.0,44055.0,0.05679]
[1646316441119,0.819665,44056.0,44055.0,0.02139368]
[1646316441519,0.819665,44056.0,44050.0,0.113585]
[1646316441520,0.6976,44052.0,44050.0,0.113585]
[1646316441717,0.91729923,44052.0,44050.0,0.113585]
[1646316441915,0.91729923,44052.0,44050.0,0.170376]
[1646316442516,0.94873475,44051.0,44050.0,0.170376]
[1646316442820,0.6976,44051.0,44050.0,0.170376]
[1646316443878,0.7976,44051.0,44050.0,0.170376]
[1646316445078,0.1,44051.0,44050.0,0.170376]
[1646316445276,0.21969923,44052.0,44050.0,0.170376]
[1646316445277,0.55683048,44052.0,44050.0,0.170376]
[1646316445676,0.6976,44051.0,44050.0,0.170376]
[1646316446079,0.7976,44051.0,44050.0,0.170376]
[1646316446277,0.21969923,44052.0,44050.0,0.170376]
[1646316446677,0.6976,44051.0,44050.0,0.170376]
[1646316446876,0.21969923,44052.0,44050.0,0.170376]
[1646316447320,0.21032988,44051.0,44050.0,0.170376]
[1646316447524,0.21969923,44052.0,44050.0,0.170376]
[1646316447822,0.6976,44051.0,44050.0,0.170376]
[1646316449225,0.28916809,44052.0,44050.0,0.170376]
[1646316449426,0.88606867,44053.0,44050.0,0.170376]
[1646316450027,0.25457531,44057.0,44052.0,0.35301]
[1646316450028,0.18847425,44054.0,44052.0,0.35301]
[1646316450227,0.6976,44055.0,44051.0,0.227141]
[1646316450428,0.92261893,44055.0,44051.0,0.227141]
[1646316450629,0.88607425,44055.0,44051.0,0.227141]
[1646316451073,0.18847425,44055.0,44051.0,0.227141]
[1646316451475,0.91599697,44057.0,44051.0,0.227141]
[1646316451476,0.88607425,44056.0,44051.0,0.227141]
[1646316451674,1.13185005,44056.0,44051.0,0.227141]
[1646316452276,0.18847425,44055.0,44051.0,0.227141]
[1646316452976,0.88607425,44055.0,44051.0,0.227141]
[1646316453378,0.21839697,44057.0,44051.0,0.227141]
[1646316453379,0.18847425,44054.0,44051.0,0.227141]
[1646316453576,0.18847425,44054.0,44051.0,0.226141]
[1646316454579,0.18847425,44053.0,44051.0,0.226141]
[1646316454855,0.18847425,44054.0,44051.0,0.226141]
[1646316455056,0.88607425,44053.0,44051.0,0.226141]
[1646316455255,0.18847425,44053.0,44051.0,0.226141]
[1646316455865,0.34679886,44055.0,44051.0,0.226141]
[1646316455866,0.18847425,44052.0,44051.0,0.226141]
[1646316456058,0.88607425,44052.0,44051.0,0.169349]
[1646316456657,0.6976,44052.0,44051.0,0.169349]
[1646316456856,0.6976,44052.0,44046.0,0.24553122]
[1646316457056,0.6976,44049.0,44044.0,0.230377]
[1646316457258,0.18854925,44049.0,44045.0,0.35321634]
[1646316457457,0.18854925,44049.0,44046.0,0.05679]
[1646316457657,0.18854925,44049.0,44047.0,0.35301]
[1646316457857,0.18854925,44050.0,44047.0,0.35301]
[1646316458057,0.2355872,44053.0,44049.0,0.35301]
[1646316458257,0.2355872,44054.0,44048.0,0.05679]
[1646316459271,0.9331872,44054.0,44048.0,0.05679]
[1646316459569,0.6976,44053.0,44048.0,0.05679]
[1646316459769,0.2355872,44054.0,44048.0,0.05679]
[1646316460170,0.6976,44053.0,44048.0,0.05679]
[1646316460372,0.2355872,44054.0,44048.0,0.05679]
[1646316460770,0.4305872,44054.0,44048.0,0.05679]
[1646316460972,0.19400688,44050.0,44048.0,0.05679]
[1646316461170,0.2355872,44054.0,44048.0,0.05679]
[1646316461770,0.28864678,44053.0,44048.0,0.05679]
[1646316461970,0.2355872,44055.0,44048.0,0.05679]
[1646316462173,0.17379354,44051.0,44048.0,0.05679]
[1646316462418,0.87139354,44051.0,44048.0,0.05679]
[1646316462616,0.17379354,44051.0,44048.0,0.05679]
[1646316463017,0.5355872,44055.0,44048.0,0.05679]
[1646316463217,0.6976,44054.0,44048.0,0.05679]
[1646316463419,0.6976,44054.0,44048.0,0.04679]
[1646316463622,0.6976,44052.0,44048.0,0.04679]
[1646316464019,0.18594707,44050.0,44048.0,0.04679]
[1646316464420,0.88354707,44050.0,44048.0,0.04679]
[1646316464619,0.18594707,44050.0,44048.0,0.04679]
[1646316465019,0.254704,44049.0,44048.0,0.04679]
[1646316465218,0.18594707,44050.0,44048.0,0.04679]
[1646316465419,0.88354707,44050.0,44048.0,0.04679]
[1646316465626,0.88354707,44050.0,44048.0,0.01139197]
[1646316465627,1.119665,44049.0,44048.0,0.01139197]
[1646316465820,0.6976,44049.0,44048.0,0.01139197]
[1646316466072,0.819665,44049.0,44048.0,0.01139197]
[1646316466279,0.6976,44049.0,44048.0,0.01139197]
[1646316466677,0.75589416,44049.0,44048.0,0.01139197]
[1646316467076,1.19589416,44049.0,44048.0,0.01139197]
[1646316467277,0.8376,44049.0,44048.0,0.01139197]
[1646316467478,0.1418,44053.0,44048.0,0.36440197]
[1646316467479,0.9331872,44053.0,44048.0,0.36440197]
[1646316467680,0.6976,44053.0,44048.0,0.36440197]
[1646316468181,0.88614911,44053.0,44048.0,0.36440197]
[1646316468380,0.34623888,44052.0,44048.0,0.36440197]
[1646316468680,0.34623888,44052.0,44049.0,0.35301]
[1646316469282,0.34623888,44052.0,44048.0,0.01139197]
[1646316469481,0.18854911,44051.0,44048.0,0.01139197]
[1646316470623,1.04383888,44052.0,44048.0,0.01139197]
[1646316471025,0.6976,44050.0,44048.0,0.01139197]
[1646316471227,0.88614911,44050.0,44048.0,0.01139197]
[1646316471428,0.88614911,44049.0,44048.0,0.01129197]
[1646316472124,0.6976,44049.0,44048.0,0.01129197]
[1646316474978,0.88614911,44049.0,44048.0,0.01129197]
[1646316475574,0.6976,44049.0,44048.0,0.01129197]
[1646316475777,0.88616323,44049.0,44048.0,0.01129197]
[1646316475976,0.6976,44049.0,44048.0,0.01129197]
[1646316476776,0.05250803,44048.0,44047.0,0.056794]
[1646316476978,0.05250803,44048.0,44047.0,0.409804]
[1646316477177,0.05250803,44048.0,44047.0,0.056794]
[1646316478634,0.18856323,44050.0,44047.0,0.409804]
[1646316478825,0.9331872,44053.0,44047.0,0.409804]
[1646316478826,0.88616323,44053.0,44047.0,0.409804]
[1646316479022,0.6976,44053.0,44047.0,0.409804]
[1646316479823,0.18856323,44054.0,44047.0,0.409804]
[1646316479824,0.18856323,44051.0,44047.0,0.409804]
[1646316480125,0.98029617,44056.0,44049.0,0.97281]
[1646316480126,0.18862499,44053.0,44049.0,0.97281]
[1646316480322,0.2355872,44056.0,44053.0,0.35301]
[1646316480323,0.18862499,44056.0,44053.0,0.35301]
[1646316480525,0.18862499,44057.0,44053.0,0.35301]
[1646316480727,0.2355872,44060.0,44053.0,0.35301]
[1646316481991,0.28269617,44062.0,44053.0,0.35301]
[1646316482191,0.28269617,44062.0,44053.0,0.37882]
[1646316482391,0.48382235,44063.0,44053.0,0.37882]
[1646316482593,0.14322335,44063.0,44058.0,0.35301]
[1646316482791,0.21163419,44064.0,44060.0,0.35301]
[1646316482993,0.32978598,44067.0,44060.0,0.35301]
[1646316483192,0.35218039,44066.0,44060.0,0.35301]
[1646316484093,0.19468166,44065.0,44060.0,0.35401]
[1646316484296,0.19468166,44065.0,44062.0,0.35301]
[1646316485633,0.19468166,44065.0,44062.0,0.09265541]
[1646316486634,0.02239441,44064.0,44062.0,0.09265541]
[1646316486837,0.27324821,44064.0,44062.0,0.09265541]
[1646316487033,0.27324821,44064.0,44054.0,0.35308]
[1646316487633,0.02239441,44064.0,44060.0,0.35308]
[1646316488688,0.2168477,44061.0,44060.0,0.35308]
[1646316488883,0.02239441,44064.0,44060.0,0.35308]
[1646316489283,0.21802443,44064.0,44060.0,0.35308]
[1646316489486,0.02239441,44064.0,44060.0,0.35308]
[1646316489886,0.22016259,44062.0,44060.0,0.35308]
[1646316490291,0.22016259,44062.0,44059.0,0.056768]
[1646316490292,1.01999441,44061.0,44059.0,0.056768]
[1646316490490,0.20428116,44056.0,44052.0,0.6925]
[1646316490785,0.20428116,44056.0,44045.0,0.35308]
[1646316490786,1.12405036,44055.0,44045.0,0.35308]
[1646316490986,0.1885667,44054.0,44045.0,0.35328626]
[1646316491188,0.1530458,44050.0,44049.0,0.35308]
[1646316491585,0.28700947,44052.0,44049.0,0.35308]
[1646316491785,0.1885667,44054.0,44049.0,0.35308]
[1646316492184,0.1885667,44053.0,44047.0,0.5]
[1646316492417,0.3,44054.0,44046.0,0.35308]
[1646316492418,0.6976,44051.0,44046.0,0.35308]
[1646316492618,0.1885667,44052.0,44046.0,0.35308]
[1646316492821,0.24582205,44051.0,44046.0,0.35308]
[1646316493118,0.19689729,44049.0,44046.0,0.35308]
[1646316494519,0.19689729,44049.0,44046.0,0.409868]
[1646316494720,0.1885667,44050.0,44046.0,0.409868]
[1646316494919,0.1885667,44051.0,44046.0,0.409868]
[1646316495619,0.1885667,44051.0,44046.0,0.404868]
[1646316495620,0.02239441,44048.0,44046.0,0.404868]
[1646316498074,0.02239441,44049.0,44046.0,0.404868]
[1646316498273,0.02239441,44049.0,44046.0,0.35308]
[1646316499935,0.02239441,44049.0,44046.0,0.409865]
[1646316500135,0.01739441,44049.0,44046.0,0.409865]
[1646316500336,0.01739441,44049.0,44046.0,0.35308]
[1646316501138,0.20596111,44049.0,44046.0,0.35308]
[1646316501337,0.1885667,44049.0,44046.0,0.35308]
[1646316501743,0.01739441,44050.0,44046.0,0.35308]
[1646316502538,0.01739441,44050.0,44046.0,0.409868]
[1646316504484,0.01739441,44052.0,44046.0,0.409868]
[1646316505089,0.20596111,44052.0,44046.0,0.409868]
[1646316505286,0.01739441,44052.0,44046.0,0.409868]
[1646316506586,0.01739441,44052.0,44046.0,0.412868]
[1646316506786,0.01739441,44052.0,44046.0,0.003]
[1646316506987,0.1885667,44050.0,44046.0,0.003]
[1646316507185,0.1885667,44050.0,44048.0,0.35308]
[1646316507622,0.44368918,44050.0,44048.0,0.35308]
[1646316507822,0.01739441,44049.0,44048.0,0.35308]
[1646316510123,0.01739441,44049.0,44048.0,0.65408]
[1646316510428,0.01739441,44049.0,44048.0,0.35408]
[1646316511273,0.01739441,44052.0,44048.0,0.467639]
[1646316511576,0.01739441,44052.0,44050.0,0.35308]
[1646316511769,0.01739441,44052.0,44051.0,0.35308]
[1646316514171,0.01739441,44052.0,44051.0,0.35408]
[1646316514370,0.1885667,44054.0,44051.0,0.35408]
[1646316514371,0.20596111,44054.0,44051.0,0.35408]
[1646316514572,0.20596111,44054.0,44052.0,0.35308]
[1646316514823,0.01739441,44054.0,44052.0,0.35308]
[1646316515024,0.20596111,44054.0,44052.0,0.35308]
[1646316515830,0.01739441,44054.0,44052.0,0.35308]
[1646316516924,0.01739441,44054.0,44052.0,0.01009196]
[1646316517627,0.01739441,44055.0,44052.0,0.01009196]
[1646316517833,0.20596111,44055.0,44052.0,0.01009196]
[1646316518228,0.20596111,44055.0,44052.0,0.01209196]
[1646316518669,0.18001622,44054.0,44052.0,0.01209196]
[1646316518867,0.20596111,44055.0,44052.0,0.01209196]
[1646316519768,0.45735976,44055.0,44052.0,0.01209196]
[1646316519967,0.20596111,44055.0,44052.0,0.01209196]
[1646316520170,0.20596111,44055.0,44052.0,0.01409196]
[1646316521068,0.41187003,44055.0,44052.0,0.01409196]
[1646316521468,0.20596111,44055.0,44052.0,0.01009196]
[1646316521670,0.1885667,44054.0,44052.0,0.01009196]
[1646316522440,0.01739441,44053.0,44052.0,0.01009196]
[1646316522645,0.400174,44053.0,44052.0,0.01009196]
[1646316523440,0.67828478,44053.0,44052.0,0.01009196]
[1646316523742,0.48407189,44053.0,44052.0,0.01009196]
[1646316523940,0.48411508,44053.0,44050.0,0.113557]
[1646316524343,0.18860989,44052.0,44048.0,0.35314]
[1646316524743,2.70949667,44050.0,44048.0,0.409924]